bitfinex/quotes_ETHUSD_20260126
["timestamp","ask_amount","ask_price","bid_price","bid_amount"]
[1769394187801,14.88288995,2880.5,2879.5,0.001]
[1769394189231,12.0834447,2880.4,2879.5,0.001]
[1769394189434,12.04004795,2880.4,2879.5,0.001]
[1769394189742,13.52833695,2880.3,2879.5,0.001]
[1769394189942,2.115842,2880.5,2879.5,0.001]
[1769394190145,21.15842,2880.7,2879.5,0.001]
[1769394190350,0.77039373,2880.6,2879.5,0.001]
[1769394190548,0.727,2880.5,2879.5,0.01838583]
[1769394190754,0.727,2880.5,2879.5,0.001]
[1769394190920,0.04339675,2880.4,2879.5,0.001]
[1769394191102,1.32444122,2880.4,2879.5,0.001]
[1769394191543,0.86774296,2881.1,2879.5,0.001]
[1769394191544,12.04004795,2880.9,2879.5,0.09495925]
[1769394191744,0.727,2880.8,2879.5,0.09495925]
[1769394191907,0.727,2880.7,2879.5,0.09495925]
[1769394192108,14.04,2881.9,2879.8,0.2335703]
[1769394192109,12.04004795,2881.3,2879.8,0.2335703]
[1769394192305,0.0433847,2881.2,2880.0,0.86805555]
[1769394192644,1.20834327,2881.2,2880.1,0.46078963]
[1769394192955,12.04004795,2881.6,2880.3,0.07657101]
[1769394193108,0.727,2881.7,2880.5,0.07657101]
[1769394193813,0.727,2881.8,2880.7,0.07657101]
[1769394194444,0.727,2881.8,2880.8,0.86781449]
[1769394195242,0.04337265,2882.0,2880.8,0.86781449]
[1769394195409,1.93534206,2881.9,2880.9,0.44156435]
[1769394195607,1.20834206,2881.9,2880.9,0.44156435]
[1769394195806,1.75951395,2881.9,2880.9,0.44156435]
[1769394196149,0.727,2881.9,2880.9,0.44156435]
[1769394196513,0.727,2881.9,2881.0,0.86775425]
[1769394197107,10.43220414,2882.2,2881.0,0.86775425]
[1769394197313,0.727,2882.0,2881.0,0.86775425]
[1769394197840,0.04337115,2882.1,2881.0,0.86775425]
[1769394198024,1.81812868,2882.1,2881.1,0.47803356]
[1769394198411,1.77475753,2882.1,2881.1,0.47803356]
[1769394198612,1.77475753,2882.1,2881.2,0.86769401]
[1769394198841,1.04775753,2882.1,2881.2,0.86769401]
[1769394199157,0.04337265,2882.0,2881.1,1.3457412]
[1769394199361,14.95535883,2882.0,2880.7,0.07657101]
[1769394199523,14.95535883,2882.0,2880.5,12.0726374]
[1769394199524,14.91198618,2882.0,2880.6,0.01734183]
[1769394199723,12.65812404,2881.8,2880.5,0.9444623]
[1769394199931,12.65812404,2881.6,2880.5,0.8679045]
[1769394200109,14.69865434,2881.5,2880.5,0.8679045]
[1769394200312,14.65527416,2881.5,2880.5,0.86789631]
[1769394200767,14.65527416,2881.5,2880.3,0.001]
[1769394201385,12.65812404,2881.2,2880.3,0.001]
[1769394201529,12.65812404,2881.0,2880.3,0.001]
[1769394201725,1.27015012,2881.5,2880.3,0.86894538]
[1769394202042,2.25386214,2882.0,2880.8,0.07657101]
[1769394202240,22.51437167,2882.3,2880.8,0.07657101]
[1769394202241,0.727,2882.1,2880.9,0.01734364]
[1769394202865,12.66012404,2882.3,2881.0,0.94432526]
[1769394203167,0.77036964,2882.2,2881.0,0.94432526]
[1769394203532,13.42849368,2882.2,2881.0,0.94432526]
[1769394203762,13.38512404,2882.2,2881.0,0.94432526]
[1769394203963,1.38208355,2882.1,2881.1,0.46662562]
[1769394204258,1.38208355,2882.1,2881.1,0.48396324]
[1769394204876,0.727,2882.0,2881.1,0.48396324]
[1769394205033,12.65812404,2881.8,2880.8,0.86781296]
[1769394205245,12.65812404,2881.8,2880.3,0.001]
[1769394205246,1.3387124,2882.1,2881.1,0.86772112]
[1769394205542,0.727,2882.0,2881.1,0.88505874]
[1769394205731,0.727,2882.1,2881.2,0.43559802]
[1769394205929,0.04337265,2882.0,2881.2,0.43559802]
[1769394206131,0.77037115,2882.1,2881.2,0.43559802]
[1769394206345,0.727,2882.1,2881.2,0.43559802]
[1769394206971,0.727,2882.1,2881.3,0.8676639]
[1769394207168,0.727,2882.1,2881.3,1.34506757]
[1769394207381,0.727,2882.1,2881.1,3.47087742]
[1769394207382,13.42849519,2882.1,2881.0,0.07657101]
[1769394207708,13.38512404,2882.1,2880.8,0.01733521]
[1769394207852,12.65812404,2881.9,2880.5,0.01834484]
[1769394208165,0.727,2881.9,2881.1,0.86769929]
[1769394208350,0.727,2881.9,2881.0,0.01734002]
[1769394208557,0.04337566,2881.8,2880.7,0.2335703]
[1769394208760,0.04337566,2881.8,2880.9,0.86776714]
[1769394208972,13.38712404,2882.0,2880.8,0.86779671]
[1769394208973,12.7014982,2881.9,2880.8,0.86779671]
[1769394209154,12.65812404,2881.9,2880.8,0.86779671]
[1769394210281,0.727,2881.8,2880.8,0.86779671]
[1769394210859,0.04337717,2881.7,2880.8,0.86779671]
[1769394211054,0.04337717,2881.7,2880.7,0.86784462]
[1769394211252,14.65527416,2881.7,2880.7,0.86784462]
[1769394211477,12.65812404,2881.5,2880.5,0.001]
[1769394213057,0.04338168,2881.4,2880.5,0.001]
[1769394213267,12.00147393,2881.3,2880.5,0.001]
[1769394214585,12.00147393,2881.3,2880.3,0.001]
[1769394214790,12.00147393,2881.1,2880.3,0.001]
[1769394214976,12.00147393,2881.1,2880.0,0.86805555]
[1769394214977,12.00147393,2880.9,2880.0,0.86805555]
[1769394215174,12.00147393,2880.9,2879.8,3.4724095]
[1769394216188,12.00147393,2881.6,2879.9,11.93159502]
[1769394216365,12.00147393,2881.6,2880.1,0.07657101]
[1769394216569,0.77038018,2881.5,2880.3,0.07657101]
[1769394216766,13.32863633,2881.6,2880.4,0.0173587]
[1769394217086,0.727,2881.5,2880.4,0.0173587]
[1769394217301,12.04485561,2881.4,2880.5,0.86790487]
[1769394217466,12.00147393,2881.4,2880.5,0.86790487]
[1769394217671,13.31770451,2881.3,2880.5,0.86790487]
[1769394217870,13.27432132,2881.3,2880.5,0.86790487]
[1769394218376,12.04485863,2881.2,2880.5,0.86790487]
[1769394218592,12.00147393,2881.2,2880.5,0.86790487]
[1769394219504,12.00147393,2881.2,2880.2,0.86799527]
[1769394219661,13.37229226,2881.1,2880.1,0.86801604]
[1769394219992,12.00147393,2881.1,2880.1,0.86801604]
[1769394220384,0.727,2881.0,2880.5,0.001]
[1769394221763,0.727,2881.1,2880.5,0.001]
[1769394224493,0.0433847,2881.2,2880.5,0.001]
[1769394224695,1.93148586,2881.1,2880.5,0.001]
[1769394225196,1.20448586,2881.1,2880.5,0.001]
[1769394225369,13.93295979,2881.1,2880.5,0.001]
[1769394225570,0.04338771,2881.0,2880.5,0.001]
[1769394225767,12.04486164,2881.0,2880.5,0.001]
[1769394225980,13.44249789,2880.9,2880.5,0.001]
[1769394226167,0.04339072,2880.8,2880.5,0.001]
[1769394226600,13.39910868,2880.9,2880.5,0.001]
[1769394226801,0.04339072,2880.8,2880.5,0.001]
[1769394227373,12.04486465,2880.8,2880.5,0.001]
[1769394227600,13.34572387,2880.7,2879.8,0.86811584]
[1769394227802,12.00147393,2880.7,2879.8,0.86811584]
[1769394228268,12.00147393,2880.7,2879.5,0.001]
[1769394231072,12.00147393,2880.1,2878.8,3.47364444]
[1769394231409,0.04339373,2880.6,2879.4,0.86823442]
[1769394231410,0.727,2880.0,2879.4,0.86823442]
[1769394231790,0.727,2880.0,2879.3,0.86825001]
[1769394231996,1.27284739,2879.9,2879.2,0.86827554]
[1769394232292,1.27284739,2879.9,2879.3,0.86825928]
[1769394232497,1.27284739,2879.9,2878.8,0.86841739]
[1769394232676,0.727,2880.0,2878.9,0.01740512]
[1769394233207,0.727,2880.3,2878.9,12.18257044]
[1769394233509,0.727,2880.3,2878.9,12.16516532]
[1769394233710,12.00147393,2880.7,2879.2,12.08859431]
[1769394233876,1.4173899,2880.6,2879.3,1.23390477]
[1769394234083,1.4173899,2880.6,2879.3,13.16549979]
[1769394234383,0.6903899,2880.6,2879.4,0.01738763]
[1769394234583,0.64699617,2880.6,2879.5,0.86820628]
[1769394234889,0.002,2880.8,2879.7,0.07657101]
[1769394235086,12.04686465,2880.8,2879.5,0.86820628]
[1769394235413,12.00347393,2880.8,2879.5,0.88558848]
[1769394235625,0.04339223,2880.7,2879.5,0.88558848]
[1769394236285,12.04486616,2880.7,2879.5,0.86820628]
[1769394236486,12.00147393,2880.5,2879.5,0.86820628]
[1769394236908,0.04339675,2880.4,2879.5,0.86820628]
[1769394237107,12.00147393,2880.5,2879.5,0.86820628]
[1769394237497,1.93168662,2880.6,2879.6,0.01738643]
[1769394237676,0.727,2880.6,2879.5,0.86820628]
[1769394238081,12.72847393,2880.6,2879.5,0.86820628]
[1769394238394,12.04486917,2880.5,2879.5,0.86820628]
[1769394238603,0.04339675,2880.4,2879.5,0.86820628]
[1769394238791,0.04339675,2880.4,2879.4,3.47282514]
[1769394238792,12.04487068,2880.4,2879.4,3.47282514]
[1769394239107,0.04339825,2880.3,2879.5,0.81621668]
[1769394239509,12.04487218,2880.3,2879.4,0.86823643]
[1769394239806,12.00147393,2880.3,2879.3,0.86825958]
[1769394239984,0.77039976,2880.2,2879.3,0.86825958]
[1769394240194,0.04339976,2880.2,2879.3,0.86825958]
[1769394240398,0.04339524,2880.5,2879.4,0.4341326]
[1769394240603,12.04486917,2880.5,2879.4,0.4341326]
[1769394240784,12.00147393,2880.5,2879.5,0.86820628]
[1769394240988,12.04487068,2880.4,2879.5,0.86820628]
[1769394241188,13.205961,2880.3,2879.0,0.07657101]
[1769394241389,12.00147393,2880.1,2879.3,0.86826107]
[1769394241590,12.00147393,2879.9,2878.9,3.4734351]
[1769394241789,12.00147393,2879.9,2879.1,0.86830932]
[1769394242105,12.00147393,2880.2,2879.4,0.86822847]
[1769394242410,2.09099737,2880.1,2879.4,0.86822847]
[1769394242608,1.36399737,2880.1,2879.3,0.86825497]
[1769394242777,2.09099737,2880.1,2878.8,3.49101682]
[1769394243213,2.09099737,2880.1,2878.7,0.86843331]
[1769394243214,9.85424763,2879.9,2878.7,0.86843331]
[1769394243421,12.74293891,2879.8,2878.7,0.86843331]
[1769394244178,12.74293891,2879.8,2878.5,0.86848572]
[1769394244387,12.74293891,2879.8,2878.6,0.86847613]
[1769394244588,12.74293891,2879.8,2878.5,0.86848936]
[1769394244793,12.74293891,2879.6,2878.4,0.001]
[1769394245420,2.25971865,2879.7,2877.9,0.86867241]
[1769394245421,13.46993891,2879.5,2877.9,0.86867241]
[1769394245620,13.46993891,2879.5,2877.9,0.88609926]
[1769394246225,13.46993891,2879.5,2877.9,0.86867241]
[1769394246430,0.727,2879.4,2877.9,0.86867241]
[1769394246636,12.74293891,2879.2,2877.9,0.86867241]
[1769394246909,12.74293891,2879.2,2877.7,0.86874934]
[1769394247332,13.61123706,2879.2,2877.7,0.86874934]
[1769394247540,12.74293891,2879.2,2877.7,0.86874934]
[1769394248029,12.74293891,2879.0,2877.7,0.86874934]
[1769394248233,1.27429389,2878.9,2877.8,0.43438642]
[1769394248435,0.727,2878.9,2877.9,0.01743711]
[1769394248637,12.74293891,2879.4,2877.9,0.01743711]
[1769394248826,0.727,2879.2,2878.0,0.86865879]
[1769394249022,0.727,2879.2,2878.1,0.01742805]
[1769394249228,0.727,2879.3,2878.1,0.01742805]
[1769394249431,2.07399389,2879.3,2878.1,0.01742805]
[1769394249629,2.07399389,2879.3,2878.0,0.88608684]
[1769394250029,14.8169328,2879.3,2878.0,0.86865879]
[1769394251225,0.04341483,2879.2,2878.0,0.86865879]
[1769394252011,0.77041483,2879.2,2878.0,0.86865879]
[1769394252215,2.25644959,2879.2,2878.1,0.4360722]
[1769394252853,12.74293891,2879.1,2877.9,0.86868629]
[1769394253018,12.74293891,2879.0,2877.9,0.86868629]
[1769394253219,12.74293891,2879.0,2877.9,0.88611917]
[1769394253551,0.727,2878.9,2877.9,0.86868629]
[1769394253717,12.74293891,2879.0,2877.9,0.86868629]
[1769394253917,13.46993891,2878.9,2877.9,0.86868629]
[1769394254149,14.0899328,2878.8,2877.9,0.86868629]
[1769394255157,14.0899328,2878.8,2877.6,0.86877953]
[1769394255519,14.0899328,2878.8,2877.5,0.86879358]
[1769394255850,12.74293891,2878.6,2877.3,0.86884949]
[1769394256051,12.74293891,2878.6,2877.1,0.001]
[1769394256250,12.74293891,2878.4,2877.5,0.86879648]
[1769394256425,12.74293891,2878.4,2878.3,0.001]
[1769394256748,13.46993891,2878.4,2878.3,0.001]
[1769394257439,13.46993891,2878.4,2877.1,0.001]
[1769394258153,12.74293891,2878.4,2877.1,0.001]
[1769394258451,2.12872328,2878.3,2877.1,0.001]
[1769394259223,11.88737305,2878.3,2877.1,0.001]
[1769394259423,0.727,2878.2,2877.2,0.01745522]
[1769394259750,0.727,2878.2,2877.1,0.01845522]
[1769394260359,11.88737305,2878.3,2877.1,0.01845522]
[1769394260556,3.8,2878.9,2877.1,0.01845522]
[1769394260859,11.88737305,2878.7,2877.0,13.68856206]
[1769394261057,0.04342388,2878.6,2877.0,13.68856206]
[1769394261459,9.85424763,2879.2,2877.0,13.68856206]
[1769394261460,12.75565978,2879.3,2877.2,12.91462837]
[1769394261758,12.61437305,2878.7,2877.4,12.91462837]
[1769394261965,11.93079693,2878.6,2877.3,1.29146284]
[1769394262258,11.88737305,2878.6,2877.3,1.29146284]
[1769394263274,11.88737305,2878.4,2877.0,0.77393369]
[1769394263468,11.93080146,2878.3,2876.9,3.47590804]
[1769394263706,11.93080146,2878.3,2876.8,0.86900043]
[1769394263707,11.88737305,2878.3,2876.8,0.86900043]
[1769394264961,11.88737305,2878.1,2876.8,0.86900043]
[1769394265172,13.08045335,2878.1,2876.9,0.4345085]
[1769394265967,0.727,2878.4,2877.0,13.78358909]
[1769394266261,0.04342841,2878.3,2877.0,13.78358909]
[1769394268884,11.88937305,2878.1,2877.0,0.86896072]
[1769394269074,1.23237024,2878.0,2877.1,0.47793121]
[1769394269468,11.93080598,2878.0,2877.1,0.47793121]
[1769394269671,11.88737305,2878.0,2877.0,0.86896072]
[1769394270595,11.88737305,2878.0,2876.9,0.4345085]
[1769394270596,11.88737305,2878.0,2876.9,0.86896594]
[1769394270773,0.77143444,2877.9,2876.9,0.86896594]
[1769394270945,0.728,2877.8,2876.9,0.86896594]
[1769394271150,11.88737305,2878.0,2876.9,0.86896594]
[1769394271378,1.96037175,2877.9,2876.9,1.30347045]
[1769394272292,0.77143444,2877.9,2876.9,1.30347045]
[1769394273285,12.42273817,2877.8,2876.9,0.43450451]
[1769394273488,0.04343746,2877.7,2876.9,0.86898811]
[1769394274655,0.04343746,2877.7,2876.5,13.45196678]
[1769394274869,0.002,2878.1,2876.6,14.27570401]
[1769394275078,12.42473817,2878.1,2876.6,1.69284899]
[1769394275282,12.42473817,2878.1,2876.5,0.86911176]
[1769394275283,12.42273817,2877.9,2876.5,0.86911176]
[1769394275458,12.46617412,2877.8,2876.5,0.86911176]
[1769394275653,12.42273817,2877.8,2876.5,0.86911176]
[1769394275858,12.42273817,2877.8,2876.5,13.45196678]
[1769394276388,12.42273817,2877.8,2876.5,0.86911176]
[1769394276562,1.24227382,2877.7,2876.6,0.43456349]
[1769394276760,12.46617714,2877.6,2876.7,0.86905134]
[1769394276989,12.42273817,2877.6,2876.7,0.86905134]
[1769394277489,12.42273817,2878.0,2876.7,0.86905134]
[1769394277681,12.46617261,2877.9,2876.7,0.86905134]
[1769394277882,1.24661726,2877.8,2876.7,1.34704403]
[1769394278082,0.04343746,2877.7,2876.7,1.34704403]
[1769394278670,12.42273817,2877.9,2876.7,1.34704403]
[1769394278870,12.42273817,2877.9,2876.7,13.92989905]
[1769394279094,12.46617412,2877.8,2876.7,0.86905134]
[1769394279303,12.42273817,2877.8,2876.5,0.8690888]
[1769394279460,0.04343746,2877.7,2876.7,0.8690412]
[1769394279661,0.04343595,2877.8,2876.7,0.8690412]
[1769394279970,12.42273817,2877.6,2876.5,0.86910411]
[1769394280166,12.42273817,2877.4,2876.4,0.86912203]
[1769394280362,0.0434435,2877.3,2876.4,0.86912203]
[1769394280582,0.0434435,2877.3,2876.5,0.86910901]
[1769394280982,0.0434435,2877.3,2876.3,3.47666376]
[1769394281195,0.728,2877.7,2876.9,0.001]
[1769394281388,12.42473817,2878.0,2876.9,0.001]
[1769394281587,0.04343444,2877.9,2876.9,12.58385502]
[1769394281798,12.46617261,2877.9,2876.9,0.001]
[1769394281982,12.42273817,2877.9,2876.2,0.86918511]
[1769394282163,12.42273817,2877.7,2876.2,0.86918511]
[1769394282366,12.42273817,2877.5,2876.2,0.86918511]
[1769394282573,0.77144199,2877.4,2876.2,0.86918511]
[1769394282903,13.19418016,2877.4,2876.2,0.86918511]
[1769394283082,13.15073817,2877.4,2876.0,0.86926286]
[1769394283274,12.42273817,2877.2,2876.1,1.69291693]
[1769394283474,0.04344652,2877.1,2876.1,1.69291693]
[1769394284509,0.04344199,2877.4,2876.1,14.27577195]
[1769394284868,0.04344199,2877.4,2876.3,12.58285502]
[1769394285196,0.04343746,2877.7,2876.6,0.86908155]
[1769394285400,12.42273817,2877.8,2876.6,0.86908155]
[1769394285974,0.002,2878.0,2876.6,0.86908155]
[1769394285975,0.002,2878.0,2876.6,13.45193657]
[1769394286227,0.04543293,2878.0,2876.6,13.45193657]
[1769394286406,0.002,2878.0,2876.8,12.58285502]
[1769394286574,0.002,2878.0,2876.9,13.34574186]
[1769394287200,0.002,2878.0,2877.0,0.86896072]
[1769394287406,0.002,2878.0,2877.0,13.45181574]
[1769394288911,0.04543293,2878.0,2877.0,0.86896072]
[1769394290001,0.04543293,2878.0,2876.9,0.8689738]
[1769394290203,1.29245004,2878.0,2876.9,1.30346947]
[1769394291114,0.002,2878.0,2877.1,13.45178554]
[1769394292610,0.002,2878.0,2877.1,0.86893052]
[1769394293879,0.002,2878.0,2876.9,0.43449567]
[1769394293880,12.42273817,2877.9,2876.9,0.43449567]
[1769394294116,0.04343595,2877.8,2877.0,0.86893987]
[1769394294416,0.04543595,2877.8,2877.0,0.86893987]
[1769394295515,0.04543595,2877.8,2876.8,12.58285502]
[1769394296223,0.04543595,2877.8,2876.7,0.86905134]
[1769394296423,0.04543595,2877.8,2876.8,0.44218277]
[1769394296724,12.46817412,2877.8,2876.8,0.44218277]
[1769394296882,12.42473817,2877.8,2876.8,0.44218277]
[1769394297089,0.04343746,2877.7,2876.8,0.44218277]
[1769394297518,0.04343746,2877.7,2876.9,0.86899092]
[1769394297722,1.29025502,2877.7,2876.9,0.86899092]
[1769394300229,0.04343746,2877.7,2876.9,13.45184594]
[1769394300395,0.002,2877.8,2876.9,13.45184594]
[1769394301036,0.0434269,2878.4,2877.6,12.58285502]
[1769394301330,0.87022613,2879.5,2878.0,12.58285502]
[1769394301331,0.002,2879.2,2878.0,12.58285502]
[1769394301505,0.002,2879.5,2878.4,13.45139309]
[1769394301705,0.04341182,2879.4,2878.5,1.70021164]
[1769394301907,0.04341182,2879.4,2878.4,0.86853807]
[1769394302113,0.002,2879.5,2878.4,13.45139309]
[1769394302354,0.04340277,2880.0,2878.8,12.58285502]
[1769394302529,0.04340277,2880.0,2878.7,0.07657101]
[1769394302530,0.04339675,2880.4,2879.0,12.58285502]
[1769394302704,12.46613492,2880.4,2879.0,12.58285502]
[1769394302908,13.66955166,2880.3,2879.1,1.2582855]
[1769394303141,12.46613793,2880.2,2878.7,0.07657101]
[1769394303352,12.42273817,2880.2,2878.6,12.58285502]
[1769394303639,12.15323748,2879.8,2878.3,0.86855216]
[1769394303945,0.86808569,2879.9,2878.0,0.86865342]
[1769394303946,12.15323748,2879.6,2878.0,0.86865342]
[1769394304105,0.77140729,2879.7,2877.7,0.80457101]
[1769394304106,12.15323748,2879.4,2877.9,0.86866904]
[1769394304309,12.15323748,2879.4,2877.3,0.07657101]
[1769394304310,12.15323748,2879.2,2877.8,0.86869622]
[1769394304544,0.77141332,2879.3,2877.8,0.86869622]
[1769394304545,12.15323748,2879.0,2877.8,0.86869622]
[1769394304747,0.04341936,2878.9,2877.5,3.4752361]
[1769394305051,0.04341936,2878.9,2878.1,0.868612]
[1769394305210,0.04341332,2879.3,2878.2,0.86859532]
[1769394305410,1.29246508,2879.2,2878.2,0.86859532]
[1769394305619,1.29246508,2879.2,2877.8,0.07657101]
[1769394305620,0.04341634,2879.1,2877.9,0.86868897]
[1769394306632,0.002,2878.7,2877.9,0.86868897]
[1769394308145,0.002,2878.7,2877.3,12.38355528]
[1769394308441,0.002,2878.7,2877.6,0.86877338]
[1769394308442,12.19865985,2878.7,2877.6,0.86877338]
[1769394308623,1.21986599,2878.6,2877.6,0.86877338]
[1769394308810,0.04342539,2878.5,2877.6,0.86877338]
[1769394310055,0.04342539,2878.5,2877.3,0.86886352]
[1769394310260,12.19666287,2878.5,2877.3,0.86886352]
[1769394310421,12.15323748,2878.5,2877.3,0.86886352]
[1769394310755,13.36856123,2878.4,2877.1,0.86891165]
[1769394311659,13.36856123,2878.4,2876.9,4.28051267]
[1769394311660,13.36856123,2878.4,2877.3,0.86886934]
[1769394312028,0.04342841,2878.3,2877.0,0.86896072]
[1769394312451,0.04342841,2878.3,2876.8,0.44218277]
[1769394312452,12.15323748,2878.2,2876.8,0.44218277]
[1769394312653,12.15323748,2878.0,2876.8,0.86900154]
[1769394312850,12.88123748,2878.0,2876.8,0.86900154]
[1769394313355,12.88123748,2878.0,2876.6,0.86906419]
[1769394313526,12.88123748,2878.0,2876.7,0.86905018]
[1769394313935,12.88123748,2878.0,2876.6,3.47631787]
[1769394314162,13.44136123,2877.9,2876.7,0.43453994]
[1769394314558,13.44136123,2877.9,2876.5,0.86909493]
[1769394314963,13.44136123,2877.9,2876.0,12.38355528]
[1769394315276,13.44136123,2877.9,2876.1,0.0347693]
[1769394315870,14.31006317,2877.9,2876.3,0.8691722]
[1769394316363,0.728,2877.8,2876.3,12.89574529]
[1769394316670,12.89714429,2877.8,2876.3,12.86097841]
[1769394316969,1.50539617,2877.7,2876.4,1.64142382]
[1769394317345,13.67454046,2877.7,2876.4,1.64142382]
[1769394318143,0.04343897,2877.6,2876.4,2.51053727]
[1769394318762,0.04343897,2877.6,2876.5,0.001]
[1769394318945,0.04343897,2877.6,2876.5,11.99280621]
[1769394319145,0.04343897,2877.6,2876.6,13.44214056]
[1769394319345,0.04343746,2877.7,2876.6,13.44214056]
[1769394320276,0.04343746,2877.7,2876.7,0.86905134]
[1769394320446,0.04343444,2877.9,2876.7,12.86085755]
[1769394320947,0.04343444,2877.9,2876.7,0.86905134]
[1769394321251,1.26469231,2877.9,2876.8,0.43452567]
[1769394321450,1.26469231,2877.9,2876.8,12.42633188]
[1769394321665,0.04343444,2877.9,2876.8,12.42633188]
[1769394321850,13.08117463,2878.2,2876.8,12.42633188]
[1769394322069,13.03774471,2878.2,2876.8,0.43452567]
[1769394322783,13.03774471,2878.2,2876.9,0.86899092]
[1769394322949,13.03774471,2878.2,2876.8,1.30352664]
[1769394323152,13.58915019,2878.1,2876.9,0.47797286]
[1769394323478,13.58915019,2878.1,2876.8,0.86900097]
[1769394323479,13.54571876,2878.1,2876.8,0.86900097]
[1769394323777,0.04343293,2878.0,2876.8,0.86900097]
[1769394323975,0.04343293,2878.0,2876.8,12.86080718]
[1769394324189,0.04343293,2878.0,2876.9,0.03475963]
[1769394324354,13.54571876,2878.1,2876.9,0.03475963]
[1769394324355,1.37657447,2878.1,2876.9,12.02656584]
[1769394324546,0.04342992,2878.2,2877.0,13.28136289]
[1769394324746,0.04342992,2878.2,2877.1,0.86893052]
[1769394324942,12.21257421,2878.2,2877.0,2.15849905]
[1769394325175,12.21257421,2878.2,2876.5,0.001]
[1769394325176,12.16914429,2878.2,2876.5,0.001]
[1769394325377,13.03774566,2878.2,2876.5,0.001]
[1769394325589,12.16914429,2878.0,2876.8,0.86900341]
[1769394325769,12.21257873,2877.9,2877.0,0.86895597]
[1769394325946,0.04343595,2877.8,2876.7,3.47617677]
[1769394326142,0.04343595,2877.8,2877.0,0.86895543]
[1769394326680,0.04343595,2877.8,2876.9,0.86898897]
[1769394326883,0.04343595,2877.8,2876.8,1.21662149]
[1769394327649,12.21258024,2877.8,2876.8,1.21662149]
[1769394327850,12.16914429,2877.8,2876.8,1.21662149]
[1769394328081,1.26035189,2877.7,2876.8,1.21662149]
[1769394328964,0.04343746,2877.7,2876.8,13.2084277]
[1769394329159,0.04343444,2877.9,2876.8,13.2084277]
[1769394329483,12.21257873,2877.9,2876.8,1.21662149]
[1769394329679,12.16914429,2877.9,2876.8,1.21662149]
[1769394330584,0.002,2878.7,2877.0,11.99180621]
[1769394330784,0.77342237,2878.7,2877.3,12.86067633]
[1769394331357,0.002,2878.7,2877.3,12.86067633]
[1769394331781,0.002,2878.7,2877.7,11.99180621]
[1769394332856,0.04542237,2878.7,2877.8,0.86871916]
[1769394333178,0.04542237,2878.7,2877.7,0.8687281]
[1769394333364,1.26707904,2878.7,2877.7,0.8687281]
[1769394335294,1.26707904,2878.7,2877.6,3.47502309]
[1769394336986,1.22365667,2878.7,2877.7,12.4510466]
[1769394337290,0.002,2878.7,2877.9,12.4510466]
[1769394337707,0.04541936,2878.9,2877.9,12.4510466]
[1769394337870,0.002,2878.9,2877.9,12.4510466]
[1769394338207,0.002,2878.9,2877.8,0.86871916]
[1769394338391,1.31283892,2878.9,2877.9,0.53004829]
[1769394338703,0.04541936,2878.9,2877.9,0.53004829]
[1769394338903,0.04541936,2878.9,2877.9,12.98109489]
[1769394339412,0.002,2878.9,2878.0,0.86865879]
[1769394339903,0.04541936,2878.9,2878.0,0.86865879]
[1769394340107,0.002,2878.9,2878.0,0.86865879]
[1769394340305,0.002,2878.9,2877.9,4.0046961]
[1769394340306,0.002,2878.9,2877.9,0.8686684]
[1769394340482,1.26741956,2878.8,2877.9,0.8686684]
[1769394341115,12.71561796,2878.7,2877.6,0.86875924]
[1769394341407,12.67219559,2878.7,2877.7,0.86874844]
[1769394341595,12.67219559,2878.7,2877.3,0.86887012]
[1769394342197,12.67219559,2878.7,2877.9,0.001]
[1769394342502,0.04342388,2878.6,2877.9,0.001]
[1769394342703,1.31518583,2878.6,2877.9,0.001]
[1769394343811,13.98738142,2878.6,2877.9,0.001]
[1769394344015,13.94395754,2878.6,2877.9,0.001]
[1769394344185,0.04342539,2878.5,2877.9,0.001]
[1769394344810,12.71562098,2878.5,2877.9,0.001]
[1769394344983,1.39873829,2878.4,2877.9,0.001]
[1769394345182,0.04342841,2878.3,2877.9,0.001]
[1769394345412,0.04542237,2878.7,2877.9,0.001]
[1769394346711,12.67219559,2878.6,2877.4,0.86882668]
[1769394346907,12.71562098,2878.5,2877.4,0.86882668]
[1769394347112,1.2715621,2878.4,2877.4,0.86882668]
[1769394347312,0.04342841,2878.3,2877.4,0.86882668]
[1769394348104,0.04342841,2878.3,2877.1,13.65370318]
[1769394348105,0.04342841,2878.3,2877.2,13.31994691]
[1769394350442,0.002,2878.7,2877.4,12.4510466]
[1769394350443,0.04542237,2878.7,2877.4,12.4510466]
[1769394350644,0.04542237,2878.7,2877.5,1.25623724]
[1769394350645,12.71761796,2878.7,2877.5,1.25623724]
[1769394350815,12.67419559,2878.7,2877.5,1.25623724]
[1769394351335,12.67419559,2878.7,2877.5,13.70728384]
[1769394351943,0.04342388,2878.6,2877.5,13.70728384]
[1769394352342,0.04342388,2878.6,2877.6,0.86877953]
[1769394352508,0.04342388,2878.6,2877.6,1.7840144]
[1769394353945,0.04342388,2878.6,2877.6,0.86877953]
[1769394354653,12.71561947,2878.6,2877.6,0.86877953]
[1769394354853,12.67219559,2878.6,2877.4,0.001]
[1769394355052,12.67219559,2878.4,2877.4,0.001]
[1769394355235,12.67219559,2878.2,2877.4,0.001]
[1769394355435,0.04343143,2878.1,2877.4,0.001]
[1769394356022,0.04343143,2878.1,2877.5,0.86880043]
[1769394356447,0.04342992,2878.2,2877.4,13.32086406]
[1769394356750,0.04342992,2878.2,2877.4,0.001]
[1769394357461,12.71562551,2878.2,2877.0,0.86896072]
[1769394357763,12.67219559,2878.0,2877.0,0.86896072]
[1769394357965,1.59655891,2878.4,2877.0,13.32000732]
[1769394357966,0.04343444,2877.9,2877.0,13.32000732]
[1769394358130,0.04342841,2878.3,2877.0,13.32000732]
[1769394358526,12.715624,2878.3,2877.0,13.32000732]
[1769394358769,12.67219559,2878.3,2877.0,13.32000732]
[1769394359065,0.728,2878.4,2877.0,13.32000732]
[1769394359066,14.01221515,2878.2,2877.0,0.86896072]
[1769394359223,12.67219559,2878.0,2877.0,0.86896072]
[1769394359428,0.04343444,2877.9,2877.0,0.86896072]
[1769394359737,0.04343143,2878.1,2877.0,0.86896072]
[1769394360351,0.04343143,2878.1,2877.1,0.03475722]
[1769394360557,0.04343143,2878.1,2877.1,1.68306239]
[1769394360558,1.52179609,2878.1,2877.1,1.68306239]
[1769394360956,1.52179609,2878.1,2877.1,0.86891528]
[1769394361125,1.52179609,2878.1,2877.1,0.8689298]
[1769394362244,1.52179609,2878.1,2877.0,0.86894194]
[1769394362439,1.52179609,2878.1,2877.1,0.8689259]
[1769394362963,1.52179609,2878.1,2876.9,3.47594911]
[1769394363133,1.52179609,2878.1,2877.0,1.67969866]
[1769394363837,1.52179609,2878.1,2876.8,13.32103752]
[1769394363838,12.31805236,2878.0,2876.8,0.87001566]
[1769394364043,0.04343444,2877.9,2876.8,0.87001566]
[1769394364958,0.04343444,2877.9,2876.8,12.48080244]